fUST/lending_fUST_20250419
["ID","MTS","AMOUNT","RATE_DAILY","PERIOD"]
[358376634,1745019033718,-500.0,0.00021917,2]
[358376635,1745019033728,-500.0,0.00021917,2]
[358376636,1745019033738,-500.0,0.00021917,2]
[358376637,1745019033748,-500.0,0.00021917,2]
[358376638,1745019033757,-699.88,0.00021917,2]
[358376639,1745019033767,-500.0,0.00021917,2]
[358376640,1745019033776,-500.0,0.00021917,2]
[358376641,1745019033795,-500.0,0.00021917,2]
[358376642,1745019033806,-500.0,0.00021917,2]
[358376643,1745019033816,-500.0,0.00021917,2]
[358376644,1745019033825,-500.0,0.00021917,2]
[358376645,1745019033835,-500.0,0.00021917,2]
[358376646,1745019033845,-6071.36,0.00021917,2]
[358376647,1745019033855,-500.0,0.00021917,2]
[358376648,1745019033865,-500.0,0.00021917,2]
[358376649,1745019033875,-500.0,0.00021917,2]
[358376650,1745019033885,-500.0,0.00021917,2]
[358376651,1745019033895,-604.46601902,0.00021917,2]
[358376652,1745019033905,-500.0,0.00021917,2]
[358376653,1745019033915,-520.16,0.00021917,2]
[358376654,1745019033925,-500.0,0.00021917,2]
[358376655,1745019033934,-500.0,0.00021917,2]
[358376656,1745019033944,-500.0,0.00021917,2]
[358376657,1745019033954,-6905.23,0.00021917,2]
[358376658,1745019033964,-500.0,0.00021917,2]
[358376659,1745019033974,-500.0,0.00021917,2]
[358376660,1745019033984,-500.0,0.00021917,2]
[358376661,1745019033994,-902.57,0.00021917,2]
[358376662,1745019034004,-500.0,0.00021917,2]
[358376663,1745019034015,-2225.39,0.00021917,2]
[358376664,1745019034025,-500.0,0.00021917,2]
[358376665,1745019034035,-419.15,0.00021917,2]
[358376666,1745019034045,-500.0,0.00021917,2]
[358376667,1745019034055,-500.0,0.00021917,2]
[358376668,1745019034064,-500.0,0.00021917,2]
[358376669,1745019034074,-1312.65,0.00021917,2]
[358376670,1745019034084,-611.59,0.00021917,2]
[358376671,1745019034094,-8901.82,0.00021917,2]
[358376672,1745019034104,-500.0,0.00021917,2]
[358376673,1745019034114,-22249.86,0.00021917,2]
[358376674,1745019034124,-594.34,0.00021917,2]
[358376675,1745019034133,-500.0,0.00021917,2]
[358376676,1745019034143,-500.0,0.00021917,2]
[358376677,1745019034153,-500.0,0.00021917,2]
[358376678,1745019034162,-500.0,0.00021917,2]
[358376679,1745019034172,-541.34,0.00021917,2]
[358376680,1745019034182,-502.77595772,0.00021917,2]
[358376681,1745019034191,-1153.77,0.00021917,2]
[358376682,1745019034201,-500.0,0.00021917,2]
[358376683,1745019034212,-500.0,0.00021917,2]
[358376684,1745019034222,-500.0,0.00021917,2]
[358376685,1745019034232,-500.0,0.00021917,2]
[358376686,1745019034242,-500.0,0.00021917,2]
[358376687,1745019034252,-681.59,0.00021917,2]
[358376688,1745019034262,-293.65140792,0.00021917,2]
[358376689,1745019034282,-206.34859208,0.00021917,2]
[358376690,1745019034292,-111.45808879,0.00021917,2]
[358376696,1745019037894,-388.54191121,0.00021917,2]
[358376697,1745019037905,-350.76368772,0.00021917,2]
[358376706,1745019038010,-366.23631228,0.00021917,2]
[358376707,1745019038020,-738.78957979,0.00021917,2]
[358376734,1745019040204,-226.69042021,0.00021917,2]
[358376735,1745019040214,-500.0,0.00021917,2]
[358376736,1745019040224,-532.6916158,0.00021917,2]
[358376737,1745019040234,-500.0,0.00021917,2]
[358376738,1745019040243,-500.0,0.00021917,2]
[358376739,1745019040256,-360.940155,0.00021917,2]
[358376740,1745019040266,-500.0,0.00021917,2]
[358376741,1745019040276,-924.62,0.00021917,2]
[358376742,1745019040286,-360.940155,0.00021917,2]
[358376743,1745019040295,-360.940155,0.00021917,2]
[358376744,1745019040305,-360.940155,0.00021917,2]
[358376745,1745019040315,-360.940155,0.00021917,2]
[358376746,1745019040325,-500.0,0.00021917,2]
[358376747,1745019040334,-360.940155,0.00021917,2]
[358376748,1745019040344,-707.58,0.00021917,2]
[358376749,1745019040354,-500.0,0.00021917,2]
[358376750,1745019040363,-360.940155,0.00021917,2]
[358376751,1745019040373,-360.940155,0.00021917,2]
[358376752,1745019040383,-500.0,0.00021917,2]
[358376753,1745019040393,-360.940155,0.00021917,2]
[358376754,1745019040403,-500.0,0.00021917,2]
[358376755,1745019040412,-360.940155,0.00021917,2]
[358376756,1745019040422,-500.0,0.00021917,2]
[358376757,1745019040432,-360.940155,0.00021917,2]
[358376758,1745019040442,-500.0,0.00021917,2]
[358376759,1745019040453,-360.940155,0.00021917,2]
[358376760,1745019040463,-500.0,0.00021917,2]
[358376761,1745019040472,-360.940155,0.00021917,2]
[358376762,1745019040482,-500.0,0.00021917,2]
[358376763,1745019040496,-360.940162,0.00021917,2]
[358376764,1745019040506,-845.73,0.00021917,2]
[358376765,1745019040516,-500.0,0.00021917,2]
[358376766,1745019040525,-763.0,0.00021917,2]
[358376767,1745019040535,-500.0,0.00021917,2]
[358376768,1745019040545,-500.0,0.00021917,2]
[358376769,1745019040555,-1110.59,0.00021917,2]
[358376770,1745019040565,-500.0,0.00021917,2]
[358376771,1745019040574,-500.0,0.00021917,2]
[358376772,1745019040584,-522.58,0.00021917,2]
[358376773,1745019040594,-500.0,0.00021917,2]
[358376774,1745019040603,-500.0,0.00021917,2]
[358376775,1745019040613,-500.0,0.00021917,2]
[358376776,1745019040623,-500.0,0.00021917,2]
[358376777,1745019040633,-500.0,0.00021917,2]
[358376778,1745019040643,-500.0,0.00021917,2]
[358376779,1745019040652,-500.0,0.00021917,2]
[358376780,1745019040662,-1282.06,0.00021917,2]
[358376781,1745019040672,-404.625614,0.00021917,2]
[358376782,1745019040682,-500.0,0.00021917,2]
[358376783,1745019040691,-404.625614,0.00021917,2]
[358376784,1745019040702,-500.0,0.00021917,2]
[358376785,1745019040714,-500.0,0.00021917,2]
[358376786,1745019040724,-404.625614,0.00021917,2]
[358376787,1745019040734,-404.625614,0.00021917,2]
[358376788,1745019040744,-404.625614,0.00021917,2]
[358376789,1745019040946,-404.625614,0.00021917,2]
[358376790,1745019040956,-404.625614,0.00021917,2]
[358376791,1745019040965,-500.0,0.00021917,2]
[358376792,1745019040974,-404.625614,0.00021917,2]
[358376793,1745019040983,-404.625614,0.00021917,2]
[358376794,1745019040993,-500.0,0.00021917,2]
[358376795,1745019041002,-404.625614,0.00021917,2]
[358376796,1745019041012,-404.625614,0.00021917,2]
[358376797,1745019041021,-404.625614,0.00021917,2]
[358376798,1745019041030,-630.91,0.00021917,2]
[358376799,1745019041040,-404.625614,0.00021917,2]
[358376800,1745019041049,-500.0,0.00021917,2]
[358376801,1745019041059,-404.625624,0.00021917,2]
[358376802,1745019041068,-1020.57,0.00021917,2]
[358376803,1745019041078,-500.0,0.00021917,2]
[358376804,1745019041087,-500.0,0.00021917,2]
[358376805,1745019041096,-1695.01,0.00021917,2]
[358376806,1745019041105,-715.61,0.00021917,2]
[358376807,1745019041115,-500.0,0.00021917,2]
[358376808,1745019041124,-589.55,0.00021917,2]
[358376809,1745019041134,-1362.98,0.00021917,2]
[358376810,1745019041143,-1066.81,0.00021917,2]
[358376811,1745019041153,-500.0,0.00021917,2]
[358376812,1745019041162,-500.0,0.00021917,2]
[358376813,1745019041172,-929.88,0.00021917,2]
[358376814,1745019041181,-500.0,0.00021917,2]
[358376815,1745019041191,-731.93,0.00021917,2]
[358376816,1745019041200,-500.0,0.00021917,2]
[358376817,1745019041209,-324.11905318,0.00021917,2]
[358376818,1745019041219,-887.88,0.00021917,2]
[358376819,1745019041230,-521.11,0.00021917,2]
[358376820,1745019041240,-675.3,0.00021917,2]
[358376821,1745019041249,-1034.25,0.00021917,2]
[358376822,1745019041258,-228.13248693,0.00021917,2]
[358376823,1745019041268,-817.89,0.00021917,2]
[358376824,1745019041277,-500.0,0.00021917,2]
[358376825,1745019041286,-1353.54,0.00021917,2]
[358376826,1745019041296,-500.0,0.00021917,2]
[358376827,1745019041305,-500.0,0.00021917,2]
[358376828,1745019041315,-1009.58,0.00021917,2]
[358376829,1745019041324,-1058.583127,0.00021918,2]
[358376830,1745019041334,-256.8195182,0.00021973,2]
[358376840,1745019046153,-243.1804818,0.00021973,2]
[358376841,1745019046164,-500.0,0.00021973,2]
[358376842,1745019046174,-500.0,0.00021973,2]
[358376843,1745019046183,-500.0,0.00021973,2]
[358376844,1745019046193,-500.0,0.00021973,2]
[358376845,1745019046204,-500.0,0.00021973,2]
[358376846,1745019046214,-502.24217432,0.00021973,2]
[358376847,1745019046223,-512.21781974,0.00021973,2]
[358376848,1745019046233,-502.03000818,0.00021973,2]
[358376849,1745019046243,-260.27594403,0.00021973,2]
[358376850,1745019046252,-500.61119497,0.00021973,2]
[358376851,1745019046262,-500.0,0.00021973,2]
[358376852,1745019046271,-500.0,0.00021973,2]
[358376853,1745019046281,-500.0,0.00021973,2]
[358376854,1745019046290,-500.0,0.00021973,2]
[358376855,1745019046300,-500.0,0.00021973,2]
[358376856,1745019046309,-500.0,0.00021973,2]
[358376857,1745019046320,-500.0,0.00021973,2]
[358376858,1745019046331,-501.10594992,0.00021973,2]
[358376859,1745019046341,-500.0,0.00021973,2]
[358376860,1745019046351,-500.0,0.00021973,2]
[358376861,1745019046360,-500.0,0.00021973,2]
[358376862,1745019046370,-500.0,0.00021973,2]
[358376863,1745019046379,-500.58778857,0.00021973,2]
[358376864,1745019046389,-503.27339897,0.00021973,2]
[358376865,1745019046399,-500.0,0.00021973,2]
[358376866,1745019046409,-500.0,0.00021973,2]
[358376867,1745019046418,-500.0,0.00021973,2]
[358376868,1745019046428,-500.0,0.00021973,2]
[358376869,1745019046437,-500.0,0.00021973,2]
[358376870,1745019046447,-500.0,0.00021973,2]
[358376871,1745019046456,-500.0,0.00021973,2]
[358376872,1745019046465,-501.83244286,0.00021973,2]
[358376873,1745019046475,-500.0,0.00021973,2]
[358376874,1745019046484,-500.0,0.00021973,2]
[358376875,1745019046498,-500.0,0.00021973,2]
[358376876,1745019046507,-500.0,0.00021973,2]
[358376877,1745019046517,-500.0,0.00021973,2]
[358376878,1745019046526,-500.0,0.00021973,2]
[358376879,1745019046536,-500.0,0.00021973,2]
[358376880,1745019046546,-500.0,0.00021973,2]
[358376881,1745019046555,-500.0,0.00021973,2]
[358376882,1745019046564,-18844.36979233,0.00022,2]
[358376883,1745020232193,-2893.0,0.00022,2]
[358376884,1745020232205,-537.21595774,0.00022,2]
[358376885,1745020232218,-10869.4947744,0.00022,2]
[358376886,1745020232228,-600.0,0.00022057,2]
[358376887,1745020232238,-160.0,0.00022066,2]
[358376888,1745020232247,-160.0,0.00022066,2]
[358376889,1745020232257,-420.40766787,0.00022066,2]
[358376890,1745020232267,-160.0,0.00022066,2]
[358376891,1745020232277,-600.0,0.00022116,2]
[358376892,1745020232287,-760.8795,0.00022125,15]
[358376893,1745020232297,-9057.17717019,0.00022136,2]
[358376894,1745020232307,-5004.9169794,0.00022136,2]
[358376895,1745020232319,-7495.0830206,0.00022136,2]
[358376896,1745020232329,-3157.16342303,0.00022136,2]
[358376897,1745020232341,-524.69668921,0.00022136,2]
[358376909,1745020238014,-8346.45933993,0.00022136,2]
[358376910,1745020238027,-471.68054783,0.00022136,2]
[358376911,1745020238037,-500.0,0.00022173,2]
[358376912,1745020238046,-500.0,0.00022173,2]
[358376913,1745020238056,-500.0,0.00022173,2]
[358376914,1745020238066,-602.1820014,0.00022173,2]
[358376915,1745020238075,-164.73861289,0.00022173,2]
[358376916,1745020238089,-335.26138711,0.00022173,2]
[358376917,1745020238099,-500.0,0.00022173,2]
[358376918,1745020238109,-316.73861289,0.00022173,2]
[358376919,1745020238156,-183.26138711,0.00022173,2]
[358376920,1745020238166,-460.79477032,0.00022173,2]
[358376924,1745020240350,-39.20522968,0.00022173,2]
[358376925,1745020240360,-500.0,0.00022173,2]
[358376926,1745020240370,-500.0,0.00022173,2]
[358376927,1745020240379,-500.0,0.00022173,2]
[358376928,1745020240388,-500.0,0.00022173,2]
[358376929,1745020240397,-472.80388031,0.00022191,2]
[358376930,1745020240407,-500.0,0.00022191,2]
[358376931,1745020240416,-900.02,0.00022191,2]
[358376932,1745020240425,-500.0,0.00022191,2]
[358376933,1745020240434,-500.0,0.00022191,2]
[358376934,1745020240444,-500.0,0.00022191,2]
[358376935,1745020240454,-500.0,0.00022191,2]
[358376936,1745020240463,-500.0,0.00022191,2]
[358376937,1745020240472,-500.0,0.00022191,2]
[358376938,1745020240481,-500.0,0.00022191,2]
[358376939,1745020240490,-500.0,0.00022191,2]
[358376940,1745020240500,-170.3558459,0.00022191,2]
[358376941,1745020240668,-500.0,0.00022191,2]
[358376942,1745020240678,-500.0,0.00022191,2]
[358376943,1745020240688,-500.0,0.00022191,2]
[358376944,1745020240698,-500.0,0.00022191,2]
[358376945,1745020240707,-500.0,0.00022191,2]
[358376946,1745020240717,-520.59,0.00022191,2]
[358376947,1745020240726,-500.0,0.00022191,2]
[358376948,1745020240736,-500.0,0.00022191,2]
[358376949,1745020240745,-643.30016098,0.00022191,2]
[358376950,1745020240755,-500.0,0.00022191,2]
[358376951,1745020240764,-500.0,0.00022191,2]
[358376952,1745020240773,-500.0,0.00022191,2]
[358376953,1745020240783,-500.0,0.00022191,2]
[358376954,1745020240793,-500.0,0.00022191,2]
[358376955,1745020240802,-500.0,0.00022191,2]
[358376956,1745020240812,-500.0,0.00022191,2]
[358376957,1745020240821,-1063.2,0.00022191,2]
[358376958,1745020240830,-500.0,0.00022191,2]
[358376959,1745020240840,-715.52,0.00022191,2]
[358376960,1745020240850,-500.0,0.00022191,2]
[358376961,1745020240859,-500.0,0.00022191,2]
[358376962,1745020240869,-500.0,0.00022191,2]
[358376963,1745020240878,-500.0,0.00022191,2]
[358376964,1745020240887,-500.0,0.00022191,2]
[358376965,1745020240902,-500.0,0.00022191,2]
[358376966,1745020240918,-500.0,0.00022191,2]
[358376967,1745020240927,-500.0,0.00022191,2]
[358376968,1745020240937,-500.0,0.00022191,2]
[358376969,1745020240944,-500.0,0.00022191,2]
[358376970,1745020240953,-500.0,0.00022191,2]
[358376971,1745020240961,-500.0,0.00022191,2]
[358376972,1745020240971,-757.7,0.00022191,2]
[358376973,1745020240980,-218.25909113,0.00022191,2]
[358376974,1745020240989,-500.0,0.00022191,2]
[358376975,1745020240998,-500.0,0.00022191,2]
[358376976,1745020241008,-500.0,0.00022191,2]
[358376977,1745020241018,-500.0,0.00022191,2]
[358376978,1745020241027,-267.47478227,0.00022191,2]
[358376979,1745020241036,-500.0,0.00022191,2]
[358376980,1745020241046,-500.0,0.00022191,2]
[358376981,1745020241055,-500.0,0.00022191,2]
[358376982,1745020241064,-500.0,0.00022191,2]
[358376983,1745020241074,-500.0,0.00022191,2]
[358376984,1745020241083,-500.0,0.00022191,2]
[358376985,1745020241093,-500.0,0.00022191,2]
[358376986,1745020241102,-500.0,0.00022191,2]
[358376987,1745020241111,-500.0,0.00022191,2]
[358376988,1745020241120,-500.0,0.00022191,2]
[358376989,1745020241131,-500.0,0.00022191,2]
[358376990,1745020241141,-500.0,0.00022191,2]
[358376991,1745020241151,-217.36324539,0.00022191,2]
[358376992,1745020241165,-282.63675461,0.00022191,2]
[358376993,1745020241175,-500.0,0.00022191,2]
[358376994,1745020241184,-749.83,0.00022191,2]
[358376995,1745020241193,-500.0,0.00022191,2]
[358376996,1745020241202,-500.0,0.00022191,2]
[358376997,1745020241212,-500.0,0.00022191,2]
[358376998,1745020241221,-500.0,0.00022191,2]
[358376999,1745020241231,-204.66183568,0.00022191,2]
[358377000,1745020241240,-231.78242035,0.00022191,2]
[358377001,1745020241249,-500.0,0.00022191,2]
[358377002,1745020241259,-649.21,0.00022191,2]
[358377003,1745020241268,-500.0,0.00022191,2]
[358377004,1745020241277,-500.0,0.00022191,2]
[358377005,1745020241287,-500.0,0.00022191,2]
[358377006,1745020241296,-500.0,0.00022191,2]
[358377007,1745020241306,-536.0,0.00022191,2]
[358377008,1745020241317,-500.0,0.00022191,2]
[358377009,1745020241326,-556.55176183,0.00022191,2]
[358377010,1745020241336,-500.0,0.00022191,2]
[358377011,1745020241345,-500.0,0.00022191,2]
[358377012,1745020241355,-500.0,0.00022191,2]
[358377013,1745020241364,-500.0,0.00022191,2]
[358377014,1745020241374,-500.0,0.00022191,2]
[358377015,1745020241384,-500.0,0.00022191,2]
[358377016,1745020241395,-500.0,0.00022191,2]
[358377017,1745020241405,-2690.95,0.00022191,2]
[358377018,1745020241416,-830.06,0.00022191,2]
[358377019,1745020241425,-500.0,0.00022191,2]
[358377020,1745020241434,-1235.48,0.00022191,2]
[358377021,1745020241443,-500.0,0.00022191,2]
[358377022,1745020241452,-665.9,0.00022191,2]
[358377023,1745020241462,-591.21,0.00022191,2]
[358377024,1745020241471,-500.0,0.00022191,2]
[358377025,1745020241481,-500.0,0.00022191,2]
[358377026,1745020241491,-500.0,0.00022191,2]
[358377027,1745020241499,-500.0,0.00022191,2]
[358377028,1745020241509,-500.0,0.00022191,2]
[358377029,1745020241518,-501.29010914,0.00022191,2]
[358377030,1745020241528,-401.72841761,0.00022191,2]
[358377032,1745020243260,-98.27158239,0.00022191,2]
[358377033,1745020243270,-500.0,0.00022191,2]
[358377034,1745020243280,-500.0,0.00022191,2]
[358377035,1745020243290,-500.0,0.00022191,2]
[358377036,1745020243299,-500.0,0.00022191,2]
[358377037,1745020243309,-606.68,0.00022191,2]
[358377038,1745020243319,-500.0,0.00022191,2]
[358377039,1745020243329,-560.96,0.00022191,2]
[358377040,1745020243338,-261.84599615,0.00022191,2]
[358377043,1745020246076,-238.15400385,0.00022191,2]
[358377044,1745020246086,-500.0,0.00022191,2]
[358377045,1745020246098,-637.18,0.00022191,2]
[358377046,1745020246108,-500.0,0.00022191,2]
[358377047,1745020246118,-616.4,0.00022191,2]
[358377048,1745020246127,-518.75,0.00022191,2]
[358377049,1745020246139,-500.0,0.00022191,2]
[358377050,1745020246149,-787.91,0.00022191,2]
[358377051,1745020246159,-555.14,0.00022191,2]
[358377052,1745020246168,-1205.35,0.00022191,2]
[358377053,1745020246179,-514.23,0.00022191,2]
[358377054,1745020246189,-500.0,0.00022191,2]
[358377055,1745020246199,-584.69,0.00022191,2]
[358377056,1745020246210,-500.0,0.00022191,2]
[358377057,1745020246220,-1473.47,0.00022191,2]
[358377058,1745020246229,-648.83,0.00022191,2]
[358377059,1745020246239,-500.0,0.00022191,2]
[358377060,1745020246248,-1427.38,0.00022191,2]
[358377061,1745020246258,-1008.04,0.00022191,2]
[358377062,1745020246267,-500.0,0.00022191,2]
[358377063,1745020246276,-2396.21242515,0.00022191,2]
[358377072,1745021432472,-422.34590031,0.00022191,2]
[358377073,1745021432485,-659.83167454,0.00022191,2]
[358377074,1745021432494,-738.95,0.00022191,2]
[358377075,1745021432504,-705.87,0.00022191,2]
[358377076,1745021432516,-500.0,0.00022191,2]
[358377077,1745021432527,-597.65,0.00022191,2]
[358377078,1745021432537,-881.35,0.00022191,2]
[358377079,1745021432547,-1000.0,0.00022191,2]
[358377080,1745021432556,-500.0,0.00022191,2]
[358377081,1745021432566,-500.0,0.00022191,2]
[358377082,1745021432577,-500.0,0.00022191,2]
[358377083,1745021432586,-500.0,0.00022191,2]
[358377084,1745021432596,-553.78,0.00022191,2]
[358377085,1745021432606,-500.0,0.00022191,2]
[358377086,1745021432615,-456.12011246,0.00022191,2]
[358377087,1745021432624,-500.0,0.00022191,2]
[358377088,1745021432634,-500.0,0.00022191,2]
[358377089,1745021432644,-418.64583539,0.00022191,2]
[358377090,1745021432654,-500.0,0.00022191,2]
[358377091,1745021432663,-500.0,0.00022191,2]
[358377092,1745021432672,-500.0,0.00022191,2]
[358377093,1745021432682,-239.15476504,0.00022191,2]
[358377094,1745021432691,-500.0,0.00022191,2]
[358377095,1745021432701,-500.0,0.00022191,2]
[358377096,1745021432711,-665.7,0.00022191,2]
[358377097,1745021432720,-500.0,0.00022191,2]
[358377098,1745021432730,-500.0,0.00022191,2]
[358377099,1745021432740,-996.41,0.00022191,2]
[358377100,1745021432749,-500.0,0.00022191,2]
[358377101,1745021432759,-673.23,0.00022191,2]
[358377102,1745021432769,-500.0,0.00022191,2]
[358377103,1745021432779,-727.21,0.00022191,2]
[358377104,1745021432788,-500.0,0.00022191,2]
[358377105,1745021432797,-500.0,0.00022191,2]
[358377106,1745021432807,-500.0,0.00022191,2]
[358377107,1745021432816,-1199.49,0.00022191,2]
[358377108,1745021432826,-500.0,0.00022191,2]
[358377109,1745021432836,-500.0,0.00022191,2]
[358377110,1745021432846,-500.0,0.00022191,2]
[358377111,1745021432855,-500.0,0.00022191,2]
[358377112,1745021432865,-500.0,0.00022191,2]
[358377113,1745021432875,-696.14,0.00022191,2]
[358377114,1745021432885,-713.98,0.00022191,2]
[358377115,1745021432895,-500.0,0.00022191,2]
[358377116,1745021432904,-500.0,0.00022191,2]
[358377117,1745021432914,-500.0,0.00022191,2]
[358377118,1745021432923,-1076.56,0.00022191,2]
[358377119,1745021432933,-616.62,0.00022191,2]
[358377120,1745021432943,-611.07,0.00022191,2]
[358377121,1745021432951,-500.0,0.00022191,2]
[358377122,1745021432960,-426.55151579,0.00022191,2]
[358377123,1745021432970,-500.0,0.00022191,2]
[358377124,1745021432984,-500.0,0.00022191,2]
[358377125,1745021432995,-764.28,0.00022191,2]
[358377126,1745021433008,-670.02,0.00022191,2]
[358377127,1745021433018,-500.0,0.00022191,2]
[358377128,1745021433028,-500.0,0.00022191,2]
[358377129,1745021433038,-533.3,0.00022191,2]
[358377130,1745021433048,-557.95,0.00022191,2]
[358377131,1745021433059,-500.0,0.00022191,2]
[358377132,1745021433070,-500.0,0.00022191,2]
[358377133,1745021433081,-500.0,0.00022191,2]
[358377134,1745021433091,-593.47,0.00022191,2]
[358377135,1745021433101,-500.0,0.00022191,2]
[358377136,1745021433111,-635.0,0.00022191,2]
[358377137,1745021433122,-500.0,0.00022191,2]
[358377138,1745021433132,-1264.65,0.00022191,2]
[358377139,1745021433142,-500.0,0.00022191,2]
[358377140,1745021433153,-500.0,0.00022191,2]
[358377141,1745021433165,-510.28,0.00022191,2]
[358377142,1745021433175,-500.0,0.00022191,2]
[358377143,1745021433186,-520.06,0.00022191,2]
[358377144,1745021433197,-435.65027751,0.00022191,2]
[358377145,1745021433207,-500.0,0.00022191,2]
[358377146,1745021433217,-500.0,0.00022191,2]
[358377147,1745021433228,-500.0,0.00022191,2]
[358377148,1745021433238,-500.0,0.00022191,2]
[358377149,1745021433248,-500.0,0.00022191,2]
[358377150,1745021433258,-500.0,0.00022191,2]
[358377151,1745021433268,-500.0,0.00022191,2]
[358377152,1745021433279,-500.0,0.00022191,2]
[358377153,1745021433290,-500.0,0.00022191,2]
[358377154,1745021433300,-649.83208416,0.00022191,2]
[358377155,1745021433311,-500.0,0.00022191,2]
[358377156,1745021433321,-500.0,0.00022191,2]
[358377157,1745021433331,-500.0,0.00022191,2]
[358377158,1745021433342,-500.0,0.00022191,2]
[358377159,1745021433351,-500.0,0.00022191,2]
[358377160,1745021433361,-524.63,0.00022191,2]
[358377161,1745021433370,-500.0,0.00022191,2]
[358377162,1745021433380,-1122.53,0.00022191,2]
[358377163,1745021433390,-1179.95,0.00022191,2]
[358377164,1745021433400,-500.0,0.00022191,2]
[358377165,1745021433410,-500.0,0.00022191,2]
[358377166,1745021433420,-500.0,0.00022191,2]
[358377167,1745021433431,-172.0,0.00022191,2]
[358377168,1745021433441,-500.0,0.00022191,2]
[358377169,1745021433450,-500.0,0.00022191,2]
[358377170,1745021433460,-576.89,0.00022191,2]
[358377171,1745021433470,-1626.71,0.00022191,2]
[358377172,1745021433481,-500.0,0.00022191,2]
[358377173,1745021433491,-500.0,0.00022191,2]
[358377174,1745021433501,-505.59417665,0.00022191,2]
[358377175,1745021433510,-500.0,0.00022191,2]
[358377176,1745021433520,-942.54,0.00022191,2]
[358377177,1745021433531,-500.0,0.00022191,2]
[358377178,1745021433541,-653.13,0.00022191,2]
[358377179,1745021433551,-905.98,0.00022191,2]
[358377180,1745021433561,-500.0,0.00022191,2]
[358377181,1745021433570,-1076.66,0.00022191,2]
[358377182,1745021433581,-500.0,0.00022191,2]
[358377183,1745021433591,-2368.99,0.00022191,2]
[358377184,1745021433600,-521.01,0.00022191,2]
[358377185,1745021433610,-500.0,0.00022191,2]
[358377186,1745021433622,-500.0,0.00022191,2]
[358377187,1745021433632,-4275.15,0.00022191,2]
[358377188,1745021433642,-1653.85,0.00022191,2]
[358377189,1745021433652,-500.0,0.00022191,2]
[358377190,1745021433661,-1045.36,0.00022191,2]
[358377191,1745021433671,-500.0,0.00022191,2]
[358377192,1745021433682,-1074.9,0.00022191,2]
[358377193,1745021433694,-500.0,0.00022191,2]
[358377194,1745021433704,-500.0,0.00022191,2]
[358377195,1745021433714,-212.85192713,0.00022191,2]
[358377196,1745021433723,-500.0,0.00022191,2]
[358377197,1745021433733,-500.0,0.00022191,2]
[358377198,1745021433743,-500.0,0.00022191,2]
[358377199,1745021433754,-500.0,0.00022191,2]
[358377200,1745021433765,-1765.93,0.00022191,2]
[358377201,1745021433775,-905.98,0.00022191,2]
[358377202,1745021433785,-567.14,0.00022191,2]
[358377203,1745021433795,-470.15646218,0.00022191,2]
[358377204,1745021433813,-918.24,0.00022191,2]
[358377205,1745021433829,-1089.4,0.00022191,2]
[358377206,1745021433849,-2582.08,0.00022191,2]